bitfinex-derivatives/quotes_SOLF0:USTF0_20260105
["timestamp","ask_amount","ask_price","bid_price","bid_amount"]
[1767645994335,0.31281982,138.55,138.47,6.4997]
[1767645994543,0.31281982,138.57,138.47,2.92234736]
[1767645994749,0.31281982,138.59,138.48,101.102]
[1767645994946,6.4951,138.58,138.51,6.4979]
[1767645995240,0.31281982,138.59,138.49,88.24234736]
[1767645995744,6.4942,138.6,138.5,101.087]
[1767645996541,6.4942,138.6,138.51,6.4977]
[1767645996837,6.4943,138.59,138.49,189.33384736]
[1767645997043,0.31281982,138.6,138.49,189.33384736]
[1767645998246,0.31281982,138.6,138.51,2.92234736]
[1767645999747,6.4943,138.59,138.51,9.42024736]
[1767646000349,6.4943,138.59,138.52,6.4975]
[1767646000849,0.31281982,138.6,138.53,6.4969]
[1767646003949,6.4937,138.61,138.54,6.4964]
[1767646004447,85.63281982,138.62,138.54,6.4964]
[1767646005142,0.31281982,138.62,138.55,6.4959]
[1767646005843,6.4927,138.63,138.56,6.4956]
[1767646006150,0.31281982,138.64,138.54,85.3]
[1767646007548,6.80481982,138.64,138.54,85.3]
[1767646008749,6.80481982,138.64,138.56,6.4956]
[1767646008946,6.80481982,138.64,138.54,85.3]
[1767646009753,0.31281982,138.64,138.58,6.4945]
[1767646009954,0.31281982,138.65,138.54,85.3]
[1767646010440,0.31281982,138.63,138.56,6.4953]
[1767646010649,0.31281982,138.63,138.56,85.28]
[1767646011654,6.4931,138.62,138.56,85.28]
[1767646012048,6.80591982,138.62,138.56,85.28]
[1767646012650,6.80631982,138.61,138.53,91.7768]
[1767646012854,0.31281982,138.61,138.53,91.7768]
[1767646013158,6.4938,138.6,138.53,91.7768]
[1767646013547,0.31281982,138.61,138.54,6.4965]
[1767646014154,0.31281982,138.61,138.55,6.496]
[1767646015154,0.31281982,138.61,138.56,6.4956]
[1767646018766,0.31281982,138.61,138.55,6.4961]
[1767646020766,6.80641982,138.61,138.53,85.28]
[1767646020958,0.31898756,138.6,138.53,85.28]
[1767646021266,0.31898756,138.59,138.52,85.28]
[1767646022471,6.81328756,138.59,138.52,91.7773]
[1767646023163,0.31898756,138.59,138.53,6.497]
[1767646023766,0.31898756,138.59,138.47,101.1094]
[1767646023767,2.92234736,138.56,138.47,101.1094]
[1767646023966,2.92234736,138.56,138.48,85.28]
[1767646024357,0.31898756,138.57,138.48,85.28]
[1767646024762,0.31898756,138.57,138.51,6.4979]
[1767646024958,3.24133492,138.57,138.48,85.28]
[1767646025655,3.24133492,138.57,138.49,6.4986]
[1767646025656,9.73663492,138.57,138.49,6.4986]
[1767646025855,9.73663492,138.57,138.49,91.7786]
[1767646026669,9.73663492,138.57,138.49,6.4986]
[1767646026869,0.31898756,138.56,138.49,91.7786]
[1767646027070,0.31898756,138.55,138.45,104.04654736]
[1767646027368,0.31898756,138.55,138.46,85.28]
[1767646027755,0.31898756,138.55,138.47,85.28]
[1767646027965,0.31898756,138.55,138.45,101.1242]
[1767646028267,0.31898756,138.55,138.46,85.28]
[1767646028667,0.31898756,138.55,138.48,6.4993]
[1767646030865,0.31898756,138.54,138.46,85.28]
[1767646031674,0.31898756,138.54,138.43,101.1391]
[1767646031968,0.31898756,138.54,138.44,88.20234736]
[1767646032565,0.31898756,138.54,138.47,6.4998]
[1767646032974,0.31898756,138.54,138.47,91.7798]
[1767646034165,0.31898756,138.57,138.47,85.28]
[1767646035675,6.4962,138.55,138.49,6.4989]
[1767646036374,6.81478756,138.56,138.49,6.4989]
[1767646038973,6.4952,138.58,138.5,2.92234736]
[1767646039171,0.31898756,138.6,138.5,104.00984736]
[1767646040474,0.31898756,138.6,138.52,1.86785141]
[1767646040685,0.31898756,138.58,138.51,87.16785141]
[1767646040873,8.36205141,138.59,138.51,87.16785141]
[1767646041279,8.68103897,138.59,138.51,87.16785141]
[1767646041780,6.81318756,138.59,138.52,6.4975]
[1767646042076,0.31898756,138.58,138.52,6.4975]
[1767646042381,0.31898756,138.57,138.5,85.3]
[1767646042775,0.31898756,138.54,138.46,1.86785141]
[1767646042981,0.31898756,138.54,138.47,85.3]
[1767646043277,0.31898756,138.54,138.46,87.16785141]
[1767646043674,0.31898756,138.51,138.44,6.5009]
[1767646043979,0.31898756,138.51,138.44,85.3]
[1767646044978,0.31898756,138.51,138.45,6.5007]
[1767646045580,6.81608756,138.53,138.45,6.5007]
[1767646047083,8.68323897,138.55,138.46,1.86785141]
[1767646048190,8.68323897,138.55,138.47,6.4998]
[1767646049084,6.81538756,138.55,138.48,6.4993]
[1767646049279,6.81538756,138.55,138.48,8.36715141]
[1767646053283,8.6969641,138.54,138.46,8.36785141]
[1767646053482,0.33251269,138.53,138.44,1.86785141]
[1767646053791,6.83011269,138.52,138.45,6.5008]
[1767646054491,0.33251269,138.52,138.46,6.5003]
[1767646054688,0.33251269,138.55,138.45,1.86785141]
[1767646055591,6.82911269,138.55,138.48,6.4992]
[1767646055888,0.33251269,138.55,138.48,6.4992]
[1767646056288,6.4966,138.54,138.45,1.86785141]
[1767646057190,6.4966,138.54,138.46,85.3]
[1767646057590,6.4966,138.54,138.47,6.4999]
[1767646059294,8.6969641,138.54,138.47,6.4999]
[1767646060687,6.4971,138.53,138.47,6.4999]
[1767646060990,2.2003641,138.52,138.46,85.3]
[1767646061388,8.6978641,138.52,138.44,85.32]
[1767646061693,8.6978641,138.52,138.45,6.5008]
[1767646062294,6.83001269,138.52,138.45,6.5008]
[1767646062494,8.6978641,138.52,138.45,6.5008]
[1767646063389,8.6978641,138.52,138.4,13.00353373]
[1767646063390,0.33251269,138.49,138.4,13.00353373]
[1767646063691,0.33251269,138.49,138.4,85.32]
[1767646063898,0.33251269,138.49,138.41,1.86785141]
[1767646064293,2.2003641,138.49,138.4,93.69065141]
[1767646064500,0.33251269,138.49,138.4,93.69065141]
[1767646064696,2.2003641,138.49,138.4,91.8228]
[1767646065301,0.33251269,138.49,138.4,85.32]
[1767646065601,0.33251269,138.49,138.41,1.86785141]
[1767646067590,6.83171269,138.49,138.41,8.37045141]
[1767646067790,0.33251269,138.48,138.41,6.5026]
[1767646067988,0.33251269,138.48,138.41,91.8226]
[1767646068800,2.2003641,138.5,138.42,6.5021]
[1767646069803,0.33251269,138.49,138.42,91.8221]
[1767646070702,6.83161269,138.49,138.42,91.8221]
[1767646071796,0.33251269,138.49,138.42,91.8221]
[1767646072001,0.33251269,138.52,138.44,1.86785141]
[1767646073609,6.83041269,138.52,138.45,6.5008]
[1767646073804,101.0544,138.55,138.42,1.86785141]
[1767646074013,0.30878265,138.53,138.42,1.86785141]
[1767646074303,2.17663406,138.52,138.43,85.34]
[1767646075705,6.4982,138.51,138.44,6.5013]
[1767646076104,6.4982,138.51,138.44,1.86785141]
[1767646077015,0.30878265,138.52,138.45,6.5008]
[1767646077212,0.30878265,138.49,138.43,85.34]
[1767646077714,6.80678265,138.52,138.43,87.20785141]
[1767646079725,6.80678265,138.52,138.45,8.36865141]
[1767646080628,6.498,138.52,138.45,8.36865141]
[1767646081122,2.20732381,138.56,138.47,1.86785141]
[1767646081517,0.3394724,138.56,138.49,1.86785141]
[1767646084522,0.3394724,138.56,138.49,8.36675141]
[1767646085030,1.86785141,138.58,138.51,6.4979]
[1767646085322,0.3394724,138.59,138.51,8.36575141]
[1767646085725,0.3394724,138.57,138.49,93.68645141]
[1767646086027,0.3394724,138.57,138.49,1.86785141]
[1767646087525,6.4963,138.55,138.49,1.86785141]
[1767646087930,6.4963,138.55,138.48,93.68725141]
[1767646089628,6.8357724,138.55,138.48,91.8194]
[1767646096143,6.4967,138.54,138.48,85.32]
[1767646096333,0.3394724,138.54,138.48,85.32]
[1767646096938,0.3394724,138.54,138.46,8.36775141]
[1767646097536,1.86785141,138.51,138.42,1.86785141]
[1767646098544,6.8369724,138.53,138.44,1.86785141]
[1767646098744,0.3394724,138.53,138.44,1.86785141]
[1767646100641,6.4975,138.52,138.45,6.5008]
[1767646102840,0.3394724,138.53,138.46,6.5003]
[1767646103045,0.3394724,138.55,138.46,6.5003]
[1767646104544,6.4972,138.53,138.46,6.5003]
[1767646105644,0.3394724,138.55,138.44,6.501]
[1767646105645,0.3394724,138.52,138.44,6.501]
[1767646106346,0.3394724,138.52,138.45,6.5007]
[1767646107139,6.8369724,138.52,138.45,6.5007]
[1767646111550,6.498,138.51,138.45,6.5007]
[1767646112451,0.33871783,138.5,138.41,13.00353373]
[1767646113146,0.33871783,138.49,138.39,85.32]
[1767646113751,0.33871783,138.49,138.4,6.5029]
[1767646114441,6.83791783,138.49,138.41,6.5026]
[1767646114638,6.83791783,138.49,138.4,2.92169981]
[1767646114639,6.4992,138.49,138.4,2.92169981]
[1767646115643,6.4992,138.49,138.43,6.5017]
[1767646116153,6.83791783,138.49,138.4,2.92169981]
[1767646117353,6.4992,138.49,138.43,6.5017]
[1767646117547,6.4992,138.49,138.4,2.92169981]
[1767646118758,6.83791783,138.49,138.42,6.5022]
[1767646119464,6.83811783,138.48,138.39,85.32]
[1767646120652,6.83811783,138.48,138.41,6.5026]
[1767646122248,6.4989,138.49,138.42,6.5021]
[1767646122655,6.83761783,138.49,138.42,6.5021]
[1767646126755,6.83761783,138.49,138.39,98.32353373]
[1767646126950,6.83761783,138.49,138.43,6.5017]
[1767646127448,6.4985,138.51,138.44,6.5012]
[1767646128260,6.4972,138.53,138.46,6.5002]
[1767646128564,0.33871783,138.54,138.46,2.92169981]
[1767646129560,0.33871783,138.54,138.48,6.4994]
[1767646130160,6.4962,138.55,138.48,6.4994]
[1767646131864,6.83491783,138.55,138.48,6.4994]
[1767646136963,0.33871783,138.55,138.49,6.4989]
[1767646137665,6.83481783,138.55,138.49,6.4989]
[1767646137866,0.33871783,138.55,138.49,6.4989]
[1767646139362,0.3093971,138.57,138.5,6.4984]
[1767646139773,0.3093971,138.57,138.46,117.03823354]
[1767646140162,6.8050971,138.56,138.49,6.4989]
[1767646140365,0.3093971,138.55,138.49,6.4989]
[1767646141670,0.31265587,138.54,138.47,6.4995]
[1767646141975,0.31265587,138.53,138.42,202.38843354]
[1767646142864,6.81065587,138.51,138.45,6.5005]
[1767646143070,0.31265587,138.5,138.42,85.32]
[1767646143969,0.31265587,138.49,138.42,85.32]
[1767646144674,6.81165587,138.49,138.42,91.822]
[1767646145871,101.0481,138.56,138.42,85.32]
[1767646146069,0.31265587,138.53,138.43,2.92169981]
[1767646146266,0.31265587,138.56,138.44,101.1315]
[1767646146571,0.31265587,138.56,138.45,2.92169981]
[1767646146963,0.31265587,138.54,138.45,2.92169981]
[1767646147164,0.31265587,138.54,138.43,13.00353373]
[1767646147474,0.31265587,138.53,138.43,13.00353373]
[1767646148667,0.31265587,138.51,138.42,13.00353373]
[1767646148975,0.31265587,138.51,138.41,85.32]
[1767646149574,6.4985,138.5,138.43,6.5014]
[1767646151878,6.81115587,138.5,138.43,6.5014]
[1767646153476,6.81115587,138.5,138.41,91.8223]
[1767646153477,6.4992,138.49,138.41,91.8223]
[1767646154582,6.81185587,138.49,138.41,91.8223]
[1767646156881,6.81185587,138.49,138.42,6.5021]
[1767646157976,6.81215587,138.48,138.41,91.8226]
[1767646159086,6.4999,138.47,138.41,91.8226]
[1767646160081,6.81315587,138.46,138.39,6.5033]
[1767646160383,0.31265587,138.46,138.38,85.34]
[1767646160775,2.92169981,138.48,138.38,85.34]
[1767646160979,0.31265587,138.49,138.38,85.34]
[1767646161786,6.4999,138.47,138.4,6.5031]
[1767646164492,8.37134276,138.47,138.4,6.5031]
[1767646166492,8.68399863,138.47,138.4,6.5031]
[1767646168783,8.68399863,138.47,138.41,6.5026]
[1767646168997,0.31265587,138.46,138.4,1.87144276]
[1767646169493,0.31265587,138.46,138.38,87.21144276]
[1767646169698,2.18409863,138.45,138.38,87.21144276]
[1767646170696,0.31265587,138.44,138.36,1.87144276]
[1767646170997,0.31265587,138.44,138.35,85.34]
[1767646170998,0.31265587,138.44,138.35,87.21144276]
[1767646171495,6.502,138.43,138.37,6.5046]
[1767646171888,0.31238484,138.42,138.35,87.21144276]
[1767646172392,0.31238484,138.42,138.37,6.5045]
[1767646172695,0.31238484,138.42,138.35,1.87144276]
[1767646173590,0.31238484,138.42,138.36,6.505]
[1767646173791,0.31238484,138.42,138.35,1.87144276]
[1767646175194,0.31238484,138.42,138.35,8.37654276]
[1767646175596,0.31238484,138.42,138.36,6.5048]
[1767646175790,6.81468484,138.42,138.34,85.34]
[1767646175996,0.31238484,138.42,138.34,87.21144276]
[1767646176187,0.31238484,138.42,138.3,21.68]
[1767646176388,0.31238484,138.42,138.33,1.87144276]
[1767646177594,6.81508484,138.42,138.34,6.506]
[1767646178103,0.31238484,138.41,138.34,6.506]
[1767646181405,0.31238484,138.44,138.37,1.87144276]
[1767646182105,0.31238484,138.44,138.38,6.5041]
[1767646182301,6.5008,138.45,138.38,6.5041]
[1767646182799,2.1838276,138.46,138.38,6.5041]
[1767646183704,0.31238484,138.45,138.38,6.5041]
[1767646183906,0.31238484,138.45,138.38,8.37554276]
[1767646184597,6.81348484,138.45,138.38,8.37554276]
[1767646185407,6.81268484,138.47,138.38,1.87144276]
[1767646186504,6.5004,138.46,138.38,8.37504276]
[1767646187002,6.81278484,138.46,138.38,6.5036]
[1767646187199,6.81278484,138.46,138.38,8.37504276]
[1767646187402,0.31238484,138.46,138.39,6.5036]
[1767646188009,6.81288484,138.46,138.39,6.5036]
[1767646192407,6.81208484,138.48,138.4,8.37444276]
[1767646192601,0.31238484,138.48,138.4,8.37444276]
[1767646193311,0.31238484,138.45,138.38,6.5038]
[1767646193807,6.80963756,138.44,138.38,6.5038]
[1767646195505,0.30833756,138.43,138.38,6.5038]
[1767646196303,0.30833756,138.43,138.35,1.87144276]
[1767646196506,2.17978032,138.43,138.35,1.87144276]
[1767646197501,0.30833756,138.42,138.35,1.87144276]
[1767646197701,1.87144276,138.39,138.3,103.10234276]
[1767646198005,1.87144276,138.39,138.3,1.87144276]
[1767646198404,101.142,138.43,138.29,85.36]
[1767646198405,2.17978032,138.37,138.29,85.36]
[1767646199109,2.17978032,138.37,138.28,1.87144276]
[1767646199309,2.17978032,138.37,138.29,85.36]
[1767646199608,0.30833756,138.37,138.31,6.5072]
[1767646199810,0.30833756,138.4,138.32,1.87144276]
[1767646200201,101.45983756,138.42,138.28,101.2454]
[1767646200409,2.17978032,138.38,138.27,35.09199909]
[1767646200613,0.30833756,138.37,138.27,35.09199909]
[1767646200799,2.17978032,138.37,138.28,87.23144276]
[1767646201005,2.17978032,138.37,138.28,1.87144276]
[1767646201614,8.68438032,138.37,138.29,6.5082]
[1767646201816,0.30833756,138.37,138.28,1.87144276]
[1767646202110,101.1515,138.42,138.3,1.87144276]
[1767646202111,6.82117903,138.38,138.3,1.87144276]
[1767646202301,8.69262179,138.38,138.3,1.87144276]
[1767646202503,2.18842179,138.38,138.3,1.87144276]
[1767646202705,0.31697903,138.38,138.31,85.38]
[1767646202907,2.18842179,138.38,138.31,85.38]
[1767646204410,2.18842179,138.38,138.32,6.5069]
[1767646204921,0.31697903,138.4,138.32,1.87144276]
[1767646205102,85.36,138.43,138.32,6.5069]
[1767646205103,0.31697903,138.38,138.32,6.5069]
[1767646205306,0.31697903,138.38,138.31,85.38]
[1767646205504,0.31697903,138.38,138.3,1.87144276]
[1767646205709,0.31697903,138.38,138.31,85.38]
[1767646206114,0.31697903,138.38,138.31,6.5073]
[1767646207620,6.82107903,138.38,138.31,6.5073]
[1767646208314,0.31697903,138.38,138.31,6.5073]
[1767646209016,6.82117903,138.38,138.31,6.5073]
[1767646209417,2.18842179,138.37,138.29,8.37934276]
[1767646209626,8.69312179,138.37,138.3,85.4]
[1767646210511,8.37614276,138.37,138.3,85.4]
[1767646210715,6.504,138.39,138.31,1.87144276]
[1767646211424,8.69152179,138.41,138.31,1.87144276]
[1767646211623,2.18842179,138.41,138.33,1.87144276]
[1767646212218,0.31697903,138.38,138.3,1.87144276]
[1767646213619,0.31697903,138.38,138.32,6.5069]
[1767646215022,0.31697903,138.41,138.33,6.5064]
[1767646215227,0.31697903,138.41,138.33,91.9064]
[1767646216024,0.31697903,138.39,138.33,85.4]
[1767646217026,0.31697903,138.39,138.31,8.37834276]
[1767646217226,0.31697903,138.39,138.32,85.4]
[1767646217427,0.31697903,138.39,138.31,93.77834276]
[1767646217628,6.5042,138.38,138.31,91.9069]
[1767646217924,0.31697903,138.37,138.31,85.4]
[1767646218323,6.5051,138.36,138.31,85.4]
[1767646220225,6.5051,138.36,138.3,6.5077]
[1767646220421,0.31697903,138.35,138.27,119.23388734]
[1767646221027,0.31697903,138.35,138.27,85.4]
[1767646221420,6.507,138.32,138.26,85.4]
[1767646222723,6.5076,138.31,138.23,6.5109]
[1767646222929,6.5076,138.31,138.24,85.4]
[1767646223725,6.5076,138.31,138.24,91.9105]
[1767646224028,2.18842179,138.34,138.24,87.27144276]
[1767646224529,0.31697903,138.34,138.24,85.4]
[1767646224726,2.92984795,138.36,138.27,6.5092]
[1767646225030,0.31697903,138.39,138.28,101.2467]
[1767646225329,0.31697903,138.39,138.29,85.42]
[1767646225627,0.31697903,138.39,138.29,88.34984795]
[1767646226022,0.31697903,138.39,138.31,6.5071]
[1767646226223,0.31697903,138.4,138.29,189.58774795]
[1767646227119,6.82017903,138.4,138.31,6.507]
[1767646227318,0.31697903,138.4,138.29,189.58774795]
[1767646227830,0.31697903,138.4,138.26,135.94483373]
[1767646227831,6.82157903,138.37,138.27,2.92984795]
[1767646228019,6.82157903,138.37,138.28,85.42]
[1767646228729,0.31697903,138.37,138.3,6.5076]
[1767646229326,6.82167903,138.37,138.28,91.9284]
[1767646229820,6.5051,138.36,138.28,91.9284]
[1767646230030,6.82207903,138.36,138.28,91.9284]
[1767646231025,6.82207903,138.36,138.25,122.9464]
[1767646231026,0.31697903,138.36,138.26,6.5095]
[1767646231230,0.31697903,138.36,138.23,88.34984795]
[1767646231231,0.3294049,138.35,138.23,88.34984795]
[1767646231623,6.5071,138.32,138.25,6.5101]
[1767646231820,6.5071,138.32,138.23,88.34984795]
[1767646233527,6.5071,138.32,138.24,6.5106]
[1767646235433,6.5075,138.31,138.23,85.42]
[1767646236032,6.5075,138.31,138.24,85.42]
[1767646236329,6.508,138.3,138.2,4.1885968]
[1767646236531,6.8374049,138.3,138.23,85.42]
[1767646236734,0.3294049,138.33,138.23,85.42]
[1767646236934,6.5073,138.32,138.24,6.5106]
[1767646237530,6.8367049,138.32,138.24,6.5106]
[1767646237840,0.3294049,138.32,138.24,6.5106]
[1767646238625,6.8365049,138.32,138.24,6.5106]
[1767646239024,6.8365049,138.32,138.22,2.92984795]
[1767646239025,6.5075,138.31,138.22,6.5113]
[1767646239229,0.3294049,138.3,138.22,6.5113]
[1767646239431,0.3294049,138.3,138.23,85.44]
[1767646239630,0.3294049,138.3,138.22,6.5113]
[1767646239827,0.3294049,138.3,138.23,85.44]
[1767646240941,0.3294049,138.3,138.22,6.5113]
[1767646241137,0.3294049,138.3,138.22,91.9513]
[1767646241332,6.8375049,138.3,138.22,91.9513]
[1767646241536,0.3294049,138.3,138.22,85.44]
[1767646241931,2.92984795,138.31,138.2,6.5123]
[1767646241932,0.3294049,138.28,138.2,6.5123]
[1767646242132,0.3294049,138.28,138.17,15.93338168]
[1767646242446,0.3294049,138.28,138.17,2.92984795]
[1767646242747,6.8388049,138.27,138.19,6.513]
[1767646243349,6.8388049,138.27,138.17,6.5137]
[1767646243350,0.3294049,138.25,138.17,6.5137]
[1767646243846,0.3294049,138.25,138.14,114.35183373]
[1767646243847,6.5122,138.21,138.14,1.25924988]
[1767646244047,6.8416049,138.21,138.13,6.5157]
[1767646244753,6.8416049,138.21,138.14,6.5153]
[1767646245146,0.3294049,138.21,138.14,6.5153]
[1767646246149,6.8416049,138.21,138.14,6.5153]
[1767646247152,6.8423049,138.2,138.12,6.5161]
[1767646247348,0.3294049,138.2,138.11,85.46]
[1767646247954,6.8421049,138.2,138.11,85.46]
[1767646249255,6.5132,138.19,138.11,85.46]
[1767646250561,6.8426049,138.19,138.12,6.5163]
[1767646251149,0.3294049,138.19,138.12,6.5163]
[1767646251349,0.3294049,138.19,138.11,85.46]
[1767646251961,0.3294049,138.22,138.11,85.46]
[1767646252763,6.8412049,138.22,138.14,6.5152]
[1767646255064,6.8412049,138.22,138.15,6.5148]
[1767646256958,0.3294049,138.22,138.16,6.5144]
[1767646257161,2.92984795,138.26,138.16,6.5144]
[1767646257467,0.33526884,138.25,138.16,6.5144]
[1767646258564,6.84606884,138.24,138.16,6.5144]
[1767646259968,0.33526884,138.24,138.16,2.92984795]
[1767646260167,0.33526884,138.24,138.16,88.42984795]
[1767646260569,6.84596884,138.24,138.17,6.5138]
[1767646261568,6.5112,138.23,138.15,6.5145]
[1767646261768,0.33526884,138.24,138.15,85.5]
[1767646263665,6.84626884,138.24,138.16,6.5144]
[1767646264464,6.84626884,138.24,138.17,6.514]
[1767646265172,0.33526884,138.24,138.18,6.5135]
[1767646265570,85.82851162,138.26,138.18,6.5135]
[1767646266068,85.82851162,138.26,138.2,6.5125]
[1767646266273,85.82851162,138.26,138.16,104.26194795]
[1767646266471,0.32851162,138.26,138.16,104.26194795]
[1767646266965,6.5098,138.26,138.19,6.5129]
[1767646268382,6.83831162,138.26,138.19,6.5129]
[1767646268879,0.32851162,138.28,138.2,2.92984795]
[1767646269080,0.32851162,138.31,138.22,2.92984795]
[1767646269975,0.32851162,138.29,138.21,6.5117]
[1767646271578,0.32851162,138.28,138.21,6.5117]
[1767646271874,6.5084,138.29,138.21,6.5117]
[1767646272068,22.17073466,138.31,138.21,2.92984795]
[1767646272272,0.32851162,138.3,138.21,2.92984795]
[1767646272668,0.32851162,138.3,138.21,9.44164795]
[1767646272872,0.32851162,138.3,138.21,94.94164795]
[1767646273674,6.83701162,138.29,138.21,94.94164795]
[1767646274368,0.32851162,138.28,138.21,92.0118]
[1767646274570,0.32851162,138.27,138.18,85.48]
[1767646276577,6.5103,138.25,138.18,91.9935]
[1767646276774,0.32851162,138.24,138.13,101.356]
[1767646276981,0.32851162,138.24,138.14,85.48]
[1767646278496,0.32851162,138.23,138.14,42.05328991]
[1767646279585,6.5119,138.22,138.15,6.5149]
[1767646279887,0.32851162,138.22,138.14,42.05328991]
[1767646280387,6.5122,138.21,138.14,6.5154]
[1767646280585,6.5122,138.21,138.11,88.40984795]
[1767646280586,0.32851162,138.21,138.11,88.40984795]
[1767646282689,0.32851162,138.21,138.14,6.5151]
[1767646283196,6.84061162,138.21,138.14,6.5151]
[1767646283895,0.32851162,138.23,138.15,6.5149]
[1767646285705,6.5118,138.22,138.15,6.5149]
[1767646287208,2.20656562,138.23,138.16,6.5144]
[1767646288309,6.5105,138.25,138.17,6.5137]
[1767646288513,6.5105,138.25,138.17,1.878054]
[1767646289005,6.83901162,138.25,138.17,1.878054]
[1767646289402,6.5107,138.24,138.14,114.35213373]
[1767646289607,0.32851162,138.25,138.16,1.878054]
[1767646289907,6.83891162,138.25,138.17,6.5139]
[1767646290209,6.83891162,138.25,138.17,8.391954]
[1767646291407,0.30718443,138.24,138.17,6.5139]
[1767646291614,0.30718443,138.23,138.17,6.5139]
[1767646292106,6.5108,138.24,138.17,6.5139]
[1767646292313,6.81798443,138.24,138.17,6.5139]
[1767646293513,6.81718443,138.26,138.18,8.391454]
[1767646293720,0.30718443,138.26,138.18,1.878054]
[1767646294020,2.18523843,138.26,138.18,1.878054]
[1767646294412,6.5103,138.25,138.18,8.391554]
[1767646297014,6.5098,138.26,138.19,6.513]
[1767646297214,6.81698443,138.26,138.19,6.513]
[1767646297414,0.30718443,138.24,138.16,1.878054]
[1767646298615,6.81798443,138.24,138.17,6.5136]
[1767646302023,6.5108,138.24,138.17,6.5136]
[1767646302320,6.5103,138.25,138.18,6.5132]
[1767646303317,6.5103,138.25,138.19,6.513]
[1767646303623,8.387654,138.27,138.19,1.878054]
[1767646303827,6.5096,138.27,138.19,1.878054]
[1767646304321,6.81608443,138.28,138.21,6.512]
[1767646304525,0.30718443,138.28,138.19,1.878054]
[1767646304721,0.30718443,138.28,138.21,1.878054]
[1767646305023,0.30718443,138.28,138.23,6.511]
[1767646306023,0.30718443,138.28,138.22,6.5116]
[1767646306821,6.81508443,138.3,138.21,1.878054]
[1767646307122,6.81508443,138.3,138.2,85.48]
[1767646307329,6.81508443,138.3,138.22,1.878054]
[1767646307530,0.30718443,138.29,138.22,6.5112]
[1767646307718,2.18523843,138.29,138.22,6.5112]
[1767646307917,2.18523843,138.29,138.21,1.878054]
[1767646308221,0.30718443,138.29,138.21,1.878054]
[1767646308917,0.30718443,138.29,138.23,6.5112]
[1767646309419,0.30718443,138.29,138.21,1.878054]
[1767646310425,0.30718443,138.29,138.24,6.5106]
[1767646311423,8.385754,138.31,138.24,6.5106]
[1767646311626,8.69293843,138.31,138.24,6.5106]
[1767646311821,6.81488443,138.31,138.25,6.5102]
[1767646313429,23.94812395,138.32,138.25,1.878054]
[1767646313630,6.81398443,138.33,138.25,1.878054]
[1767646314627,6.81398443,138.33,138.26,6.5095]
[1767646314824,6.81398443,138.33,138.26,8.387554]
[1767646316730,0.30718443,138.33,138.27,6.5092]
[1767646316928,2.18963251,138.36,138.26,1.878054]
[1767646317232,0.31157851,138.36,138.28,1.878054]
[1767646317932,0.31157851,138.36,138.28,8.386854]
[1767646318339,0.31157851,138.36,138.29,6.5083]
[1767646318523,0.31157851,138.36,138.28,1.878054]
[1767646319530,0.31157851,138.36,138.3,6.5078]
[1767646319728,0.31157851,138.36,138.28,1.878054]
[1767646320430,6.81717851,138.35,138.27,1.878054]
[1767646320730,2.18963251,138.37,138.29,1.878054]
[1767646321124,2.20994617,138.39,138.31,6.5074]
[1767646321433,2.20994617,138.37,138.29,1.878054]
[1767646321829,8.71484617,138.37,138.3,6.5078]
[1767646322332,8.71394617,138.39,138.31,1.878054]
[1767646322927,0.33189217,138.38,138.29,1.878054]
[1767646323927,6.83699217,138.36,138.29,6.5083]
[1767646325526,0.33189217,138.3,138.18,186.7594]
[1767646325835,0.33189217,138.3,138.18,87.318054]
[1767646325836,0.33189217,138.26,138.18,87.318054]
[1767646326135,0.33189217,138.26,138.18,93.831454]
[1767646326730,0.33189217,138.26,138.19,6.5128]
[1767646328636,6.84169217,138.26,138.19,6.5128]
[1767646329729,0.33189217,138.32,138.21,1.878054]
[1767646329929,2.20994617,138.31,138.21,1.878054]
[1767646330241,0.33189217,138.33,138.23,6.511]
[1767646330540,2.20994617,138.32,138.23,6.511]
[1767646330841,0.33189217,138.31,138.23,6.511]
[1767646331032,8.71794617,138.3,138.2,1.878054]
[1767646331526,8.71794617,138.3,138.23,6.5109]
[1767646332934,8.71884617,138.28,138.16,123.0133]
[1767646333141,0.33189217,138.27,138.17,87.318054]
[1767646333331,1.878054,138.26,138.17,87.318054]